bitfinex/quotes_BTCUSD_20250814
["timestamp","ask_amount","ask_price","bid_price","bid_amount"]
[1755208156299,0.01614097,117970.0,117960.0,0.00523]
[1755208156482,0.01614097,117970.0,117960.0,0.58220828]
[1755208156712,0.01614097,117970.0,117960.0,0.58008892]
[1755208157127,0.00034758,117970.0,117960.0,0.74963791]
[1755208157956,0.00034758,117970.0,117960.0,0.17477899]
[1755208158180,0.00034758,117970.0,117960.0,0.74963791]
[1755208159158,0.00034758,117970.0,117960.0,0.17477899]
[1755208159338,0.32876066,117980.0,117970.0,0.16953462]
[1755208159546,0.51357471,117980.0,117970.0,0.16953462]
[1755208159777,0.71357471,117980.0,117970.0,0.16953462]
[1755208161086,0.71357471,117980.0,117970.0,0.17261462]
[1755208162855,0.71357471,117980.0,117970.0,0.16953462]
[1755208163063,0.69778132,117980.0,117970.0,0.16953462]
[1755208163269,0.71361524,117980.0,117970.0,0.17261462]
[1755208165235,0.56329524,117980.0,117970.0,0.51476462]
[1755208167766,0.47848119,117980.0,117970.0,1.08962354]
[1755208168716,0.47848119,117980.0,117970.0,1.09800534]
[1755208170258,0.47848119,117980.0,117970.0,1.09585534]
[1755208170462,0.46264727,117980.0,117970.0,1.09277534]
[1755208170910,0.46264727,117980.0,117970.0,0.50953462]
[1755208171120,0.46264727,117980.0,117970.0,0.51261462]
[1755208171561,0.45474758,117980.0,117970.0,0.51261462]
[1755208172575,0.45474758,117980.0,117970.0,0.51476462]
[1755208174597,0.45474758,117980.0,117970.0,0.51261462]
[1755208175723,0.45474758,117980.0,117970.0,1.08962354]
[1755208176246,0.25474758,117980.0,117970.0,1.08962354]
[1755208177545,0.15458758,117980.0,117970.0,1.08962354]
[1755208177754,0.01034758,117980.0,117970.0,1.08962354]
[1755208179367,0.01034758,117980.0,117970.0,1.23386354]
[1755208187474,0.01034758,117980.0,117970.0,0.65900462]
[1755208187707,0.01034758,117980.0,117970.0,1.23386354]
[1755208190123,0.01034758,117980.0,117970.0,0.65900462]
[1755208190346,0.01034758,117980.0,117970.0,1.23386354]
[1755208190589,0.01034758,117980.0,117970.0,0.65900462]
[1755208190806,0.01034758,117980.0,117970.0,1.23386354]
[1755208192696,0.00834758,117980.0,117970.0,1.23386354]
[1755208193802,0.00834758,117980.0,117970.0,0.65900462]
[1755208194219,0.00834758,117980.0,117970.0,1.23386354]
[1755208195992,0.1502,118000.0,117990.0,0.74436481]
[1755208196222,0.1502,118000.0,117990.0,0.74964481]
[1755208196432,0.0002,118000.0,117990.0,0.89360481]
[1755208199257,0.0002,118000.0,117990.0,0.31874589]
[1755208199460,0.0002,118000.0,117990.0,0.89360481]
[1755208201698,1e-08,118000.0,117990.0,1.89327778]
[1755208201906,1e-08,118000.0,117990.0,0.87572544]
[1755208202137,1e-08,118000.0,117990.0,1.45058436]
[1755208202356,1e-08,118000.0,117990.0,1.46486822]
[1755208202800,1e-08,118000.0,117990.0,1.35816072]
[1755208203015,1e-08,118000.0,117990.0,1.34387686]
[1755208203658,1e-08,118000.0,117990.0,1.34487686]
[1755208204352,0.0002,118020.0,118010.0,1.08433608]
[1755208204569,0.5002,118040.0,118030.0,0.16944844]
[1755208204822,0.50034752,118040.0,118030.0,0.16944844]
[1755208205068,0.50034752,118040.0,118030.0,0.17160844]
[1755208205282,0.50034752,118040.0,118030.0,0.17472844]
[1755208205722,0.50034752,118040.0,118030.0,0.51472844]
[1755208207681,0.50034752,118040.0,118030.0,1.08958736]
[1755208207682,1e-08,118040.0,118030.0,1.08958736]
[1755208207905,1e-08,118040.0,118030.0,1.23338736]
[1755208208379,1e-08,118040.0,118030.0,1.31820141]
[1755208211037,1e-08,118040.0,118030.0,1.31920141]
[1755208211256,1e-08,118040.0,118030.0,1.34465141]
[1755208213271,1e-08,118040.0,118030.0,1.60885141]
[1755208214382,1e-08,118040.0,118030.0,1.03399249]
[1755208214620,1e-08,118040.0,118030.0,1.60885141]
[1755208216018,1e-08,118040.0,118030.0,1.03399249]
[1755208216228,1e-08,118040.0,118030.0,1.60885141]
[1755208217333,1e-08,118040.0,118030.0,1.03399249]
[1755208217769,1e-08,118040.0,118030.0,1.60885141]
[1755208219001,1e-08,118040.0,118030.0,1.34465141]
[1755208220026,1e-08,118040.0,118030.0,1.35310642]
[1755208221075,1e-08,118040.0,118030.0,0.7782475]
[1755208221220,0.01577512,118040.0,118030.0,1.35310642]
[1755208221865,0.01577512,118040.0,118030.0,0.7782475]
[1755208222067,0.01577512,118040.0,118030.0,1.35310642]
[1755208224416,0.01577512,118040.0,118030.0,0.7782475]
[1755208224635,0.01577512,118040.0,118030.0,1.35310642]
[1755208225097,0.01577512,118040.0,118030.0,1.61730642]
[1755208226919,0.2,118020.0,118010.0,0.17795101]
[1755208227125,0.2,118000.0,117990.0,0.17798064]
[1755208227339,0.22367777,118000.0,117990.0,0.17798064]
[1755208228479,0.39316929,118000.0,117980.0,0.17798344]
[1755208228694,0.22367777,118000.0,117990.0,0.1696534]
[1755208229807,0.22367777,118000.0,117990.0,0.1746834]
[1755208230246,0.21577511,118000.0,117990.0,0.1746834]
[1755208230467,0.21677511,118000.0,117990.0,0.1725834]
[1755208230936,0.21677511,118000.0,117990.0,0.1696534]
[1755208236170,0.21677511,118000.0,117990.0,0.1725834]
[1755208236599,0.21677511,118000.0,117990.0,0.1696534]
[1755208236842,0.21677511,118000.0,117990.0,0.5096534]
[1755208237026,0.201,118000.0,117990.0,0.5126534]
[1755208238009,0.201,118000.0,117990.0,0.5096534]
[1755208238648,0.34564,118000.0,117990.0,0.5126534]
[1755208239335,0.34564,118000.0,117990.0,0.5147734]
[1755208240087,0.201,118000.0,117990.0,0.5147734]
[1755208240568,0.001,118000.0,117990.0,1.08963232]
[1755208240769,0.001,118000.0,117990.0,1.23427232]
[1755208240984,1e-08,118000.0,117990.0,1.31908637]
[1755208241377,0.01440312,118030.0,118020.0,0.74432172]
[1755208241605,0.01440312,118030.0,118020.0,0.74644172]
[1755208241812,0.01440312,118030.0,118020.0,0.1715828]
[1755208241963,0.01440312,118030.0,118020.0,0.1745828]
[1755208242179,0.01440312,118030.0,118020.0,0.74944172]
[1755208242975,0.01440312,118030.0,118020.0,0.1745828]
[1755208246381,0.31949152,118000.0,117990.0,0.00014751]
[1755208246593,2.01447046,118000.0,117990.0,0.00014751]
[1755208246809,2.05275003,118000.0,117990.0,0.00014751]
[1755208247023,2.13757115,118000.0,117990.0,0.00014751]
[1755208247676,2.14431127,118000.0,117990.0,0.00014751]
[1755208248541,2.17470731,118000.0,117990.0,0.00014751]
[1755208248759,1.69904725,118000.0,117990.0,0.00014751]
[1755208251086,1.66865121,118000.0,117990.0,0.00014751]
[1755208251931,1.69357239,118000.0,117990.0,0.00014751]
[1755208252151,1.72396843,118000.0,117990.0,0.00014751]
[1755208252356,1.72396338,118000.0,117990.0,0.00014751]
[1755208252563,1.74943738,118000.0,117990.0,0.00014751]
[1755208253854,1.7553473,118000.0,117990.0,0.00014751]
[1755208254307,6.7553473,118000.0,117990.0,0.00014751]
[1755208254738,6.08128952,118000.0,117990.0,0.00014751]
[1755208254948,6.7553473,118000.0,117990.0,0.00014751]
[1755208256663,6.04415336,118000.0,117990.0,0.00014751]
[1755208256894,6.71821114,118000.0,117990.0,0.00014751]
[1755208257990,6.76925114,118000.0,117990.0,0.00014751]
[1755208258785,6.71821114,118000.0,117990.0,0.00014751]
[1755208258994,1.71821114,118000.0,117990.0,0.00014751]
[1755208260455,1.69273714,118000.0,117990.0,0.00014751]
[1755208262181,1.73142651,118000.0,117990.0,0.00014751]
[1755208262873,1.73142849,118000.0,117990.0,0.00014751]
[1755208265494,1.19357803,117980.0,117970.0,0.00066751]
[1755208265703,1.63110052,117980.0,117970.0,0.00278751]
[1755208268565,1.63108968,117980.0,117970.0,0.00278751]
[1755208268798,1.48684968,117980.0,117970.0,0.00278751]
[1755208269014,1.48684968,117980.0,117970.0,0.20648213]
[1755208269015,0.47363636,117980.0,117970.0,0.20648213]
[1755208269232,0.36759636,117980.0,117970.0,0.20648213]
[1755208269450,0.16759636,117980.0,117970.0,0.20648213]
[1755208269658,0.15971621,117980.0,117970.0,0.20648213]
[1755208271768,0.2,117970.0,117960.0,0.17802539]
[1755208271992,0.99477349,117970.0,117960.0,0.00213]
[1755208272209,1.14477349,117970.0,117960.0,0.00213]
[1755208272419,0.4,117950.0,117940.0,0.17803018]
[1755208272646,0.56619621,117950.0,117940.0,0.18016018]
[1755208272862,0.56619621,117950.0,117940.0,0.18030776]
[1755208273955,0.56619621,117950.0,117940.0,0.18340776]
[1755208276909,0.66079387,117950.0,117940.0,0.18340776]
[1755208282639,0.66292387,117950.0,117940.0,0.17817776]
[1755208282867,0.81614387,117950.0,117940.0,0.17817776]
[1755208283104,0.98570724,117950.0,117940.0,0.17817776]
[1755208283321,0.81292387,117950.0,117940.0,0.17817776]
[1755208283949,0.98248724,117950.0,117940.0,0.17817776]
[1755208284168,0.81392387,117950.0,117940.0,0.17817776]
[1755208284811,0.81392387,117950.0,117940.0,0.18030776]
[1755208285637,0.98348724,117950.0,117940.0,0.18030776]
[1755208286047,0.98356801,117950.0,117940.0,0.18030776]
[1755208286251,0.81400464,117950.0,117940.0,0.18030776]
[1755208286464,0.81400464,117950.0,117940.0,0.18340776]
[1755208287879,0.81400464,117950.0,117940.0,0.18030776]
[1755208291141,0.98356801,117950.0,117940.0,0.18030776]
[1755208292050,0.98356801,117950.0,117940.0,0.18340776]
[1755208292433,0.81400464,117950.0,117940.0,0.18030776]
[1755208292643,0.98356801,117950.0,117940.0,0.18030776]
[1755208293268,0.98356801,117950.0,117940.0,0.17817776]
[1755208293678,0.81400464,117950.0,117940.0,0.17817776]
[1755208295320,0.81399429,117950.0,117940.0,0.18030776]
[1755208296923,1.45687184,117950.0,117940.0,0.18030776]
[1755208297078,1.05121952,117950.0,117940.0,0.18030776]
[1755208297283,0.98355766,117950.0,117940.0,0.18030776]
[1755208297492,0.98675766,117950.0,117940.0,0.00014758]
[1755208297688,1.56197335,117950.0,117940.0,0.00014758]
[1755208297855,1.03083957,117950.0,117940.0,0.00014758]
[1755208298068,1.56197335,117950.0,117940.0,0.00014758]
[1755208298269,0.98675766,117950.0,117940.0,0.00014758]
[1755208298539,1.56197335,117950.0,117940.0,0.00014758]
[1755208300043,1.62197335,117950.0,117940.0,0.00014758]
[1755208300454,1.62198255,117950.0,117940.0,0.00014758]
[1755208301215,1.62792533,117950.0,117940.0,0.00014758]
[1755208302247,1.62198255,117950.0,117940.0,0.00014758]
[1755208304191,1.04676686,117950.0,117940.0,0.00014758]
[1755208304406,1.62198255,117950.0,117940.0,0.00014758]
[1755208306309,1.60614672,117950.0,117940.0,0.00014758]
[1755208306736,1.03093103,117950.0,117940.0,0.00014758]
[1755208306974,1.60614672,117950.0,117940.0,0.00014758]
[1755208307183,1.6835877,117950.0,117940.0,0.00014758]
[1755208307394,1.10837201,117950.0,117940.0,0.00014758]
[1755208307579,1.6835877,117950.0,117940.0,0.00014758]
[1755208307756,1.7835877,117950.0,117940.0,0.00014758]
[1755208307976,6.80850888,117950.0,117940.0,0.00014758]
[1755208308179,6.81444858,117950.0,117940.0,0.00014758]
[1755208308522,6.84736453,117950.0,117940.0,0.00014758]
[1755208309032,6.84636453,117950.0,117940.0,0.00014758]
[1755208309876,6.82336453,117950.0,117940.0,0.00014758]
[1755208310077,6.84836453,117950.0,117940.0,0.00014758]
[1755208310483,6.82136453,117950.0,117940.0,0.00014758]
[1755208310691,6.84636453,117950.0,117940.0,0.00014758]
[1755208311084,6.84836453,117950.0,117940.0,0.00014758]
[1755208312285,6.81621223,117950.0,117940.0,0.00014758]
[1755208312844,6.84836453,117950.0,117940.0,0.00014758]
[1755208313848,6.27314884,117950.0,117940.0,0.00014758]
[1755208314065,6.84836453,117950.0,117940.0,0.00014758]
[1755208314275,0.74451331,117930.0,117920.0,0.1]
[1755208314493,7.72319089,117930.0,117920.0,0.090104]
[1755208314718,7.78478973,117930.0,117920.0,0.08171452]
[1755208314922,7.78798973,117930.0,117920.0,0.08171452]
[1755208315359,7.78798973,117930.0,117920.0,0.07380444]
[1755208315542,7.78798973,117930.0,117920.0,0.05654608]
[1755208315954,7.82680872,117930.0,117920.0,0.05654608]
[1755208316359,0.71964967,117890.0,117880.0,0.00308]
[1755208316571,1.71160607,117890.0,117880.0,0.00521]
[1755208317541,1.71365481,117890.0,117880.0,0.00570195]
[1755208318670,1.71685481,117890.0,117880.0,0.00049195]
[1755208319058,1.72540746,117890.0,117880.0,0.00049195]
[1755208320324,1.78912269,117890.0,117880.0,0.00049195]
[1755208320535,6.82126001,117890.0,117880.0,0.00049195]
[1755208320743,6.8271682,117890.0,117880.0,0.00049195]
[1755208321169,6.83504576,117890.0,117880.0,0.00049195]
[1755208321892,6.83704576,117890.0,117880.0,0.00049195]
[1755208323442,6.80489346,117890.0,117880.0,0.00049195]
[1755208324482,6.22647777,117890.0,117880.0,0.00049195]
[1755208324690,6.82719346,117890.0,117880.0,0.00049195]
[1755208325182,6.83039346,117890.0,117880.0,0.00049195]
[1755208325453,0.16966406,117880.0,117870.0,0.0004]
[1755208325590,6.13447985,117880.0,117870.0,0.00054761]
[1755208325792,1.13447985,117880.0,117870.0,0.00054761]
[1755208327265,0.81967845,117870.0,117860.0,0.00308]
[1755208327475,1.67251063,117870.0,117860.0,0.00508]
[1755208327695,1.75948187,117870.0,117860.0,0.00508]
[1755208328104,1.75733187,117870.0,117860.0,0.00508]
[1755208328310,1.18211618,117870.0,117860.0,0.00508]
[1755208328718,1.75733187,117870.0,117860.0,0.00508]
[1755208329866,1.76322839,117870.0,117860.0,0.00508]
[1755208330071,1.79087939,117870.0,117860.0,0.00508]
[1755208330327,6.79087939,117870.0,117860.0,0.00508]
[1755208330536,6.79087939,117870.0,117860.0,0.002]
[1755208330949,0.16969285,117860.0,117850.0,0.00334]
[1755208331147,6.13083647,117860.0,117850.0,0.00534]
[1755208331349,1.13083647,117860.0,117850.0,0.00534]
[1755208332094,1.13183647,117860.0,117850.0,0.00534]
[1755208332319,0.55662078,117860.0,117850.0,0.00534]
[1755208333176,1.13183647,117860.0,117850.0,0.00534]
[1755208333387,1.13398647,117860.0,117850.0,0.0033]
[1755208333608,1.13988555,117860.0,117850.0,0.0033]
[1755208333742,0.6020064,117860.0,117850.0,0.0033]
[1755208333953,1.20666863,117860.0,117850.0,0.0033]
[1755208334802,1.23217063,117860.0,117850.0,0.0033]
[1755208335607,0.71972165,117840.0,117820.0,0.74531746]
[1755208335784,0.23137405,117830.0,117820.0,0.74531746]
[1755208336000,0.24712995,117830.0,117820.0,0.20723955]
[1755208337024,0.24712071,117830.0,117820.0,0.20723955]
[1755208337238,0.24712071,117830.0,117820.0,0.20823955]
[1755208337452,0.24712071,117830.0,117820.0,0.21117955]
[1755208337654,0.33194195,117830.0,117820.0,0.21117955]
[1755208337866,0.50167801,117830.0,117820.0,0.04147778]
[1755208338149,0.60167801,117830.0,117820.0,0.04147778]
[1755208338283,0.63994284,117830.0,117820.0,0.04147778]
[1755208338696,0.63994284,117830.0,117820.0,0.04047778]
[1755208339091,0.64585033,117830.0,117820.0,0.00548778]
[1755208339848,0.67800955,117830.0,117820.0,0.00254778]
[1755208340061,0.67900955,117830.0,117820.0,0.00254778]
[1755208341117,0.65214725,117830.0,117820.0,0.00054778]
[1755208341317,0.64685725,117830.0,117820.0,0.00254778]
[1755208342340,0.65214725,117830.0,117820.0,0.00054778]
[1755208342751,0.65214725,117830.0,117820.0,0.00254778]
[1755208343174,0.65214725,117830.0,117820.0,0.00054778]
[1755208345221,1.22736294,117830.0,117820.0,0.00054778]
[1755208345479,0.56977928,117800.0,117790.0,0.18122217]
[1755208345718,0.93875131,117800.0,117790.0,0.18028217]
[1755208345946,0.95450482,117800.0,117790.0,0.002]
[1755208346175,0.4,117780.0,117770.0,0.75342204]
[1755208346399,0.64644756,117780.0,117770.0,0.18314635]
[1755208346632,0.65623117,117780.0,117770.0,0.18314635]
[1755208347003,0.82603928,117780.0,117770.0,0.18314635]
[1755208347222,0.95548582,117780.0,117770.0,0.18314635]
[1755208347419,0.95563286,117780.0,117770.0,0.18020635]
[1755208347645,0.99369587,117780.0,117770.0,0.002]
[1755208347847,1.18100056,117780.0,117770.0,0.002]
[1755208348054,1.18100056,117780.0,117770.0,0.003]
[1755208348823,1.18932098,117780.0,117770.0,0.003]
[1755208349216,1.18932098,117780.0,117770.0,0.002]
[1755208349432,0.16982253,117770.0,117760.0,0.17019039]
[1755208349634,0.50065133,117770.0,117760.0,0.17219039]
[1755208349865,0.53280363,117770.0,117760.0,0.17219039]
[1755208350051,0.53280363,117770.0,117760.0,0.0024]
[1755208350727,0.53280363,117770.0,117760.0,0.0034]
[1755208351151,0.53280363,117770.0,117760.0,0.17323695]
[1755208351584,0.64009363,117770.0,117760.0,0.0014]
[1755208351835,1.22120513,117770.0,117760.0,0.0014]
[1755208352060,1.25065167,117770.0,117760.0,0.0014]
[1755208352534,6.27557285,117770.0,117760.0,0.0014]
[1755208352964,6.27557285,117770.0,117760.0,0.0004]
[1755208353419,6.27757285,117770.0,117760.0,0.0004]
[1755208353638,6.24542055,117770.0,117760.0,0.0004]
[1755208353848,6.24342055,117770.0,117760.0,0.0004]
[1755208354081,6.24742055,117770.0,117760.0,0.0004]
[1755208354297,6.27957285,117770.0,117760.0,0.0004]
[1755208355192,0.71988023,117730.0,117720.0,0.0180795]
[1755208355418,1.13236005,117730.0,117720.0,0.0180795]
[1755208355652,1.13550005,117730.0,117720.0,0.0180795]
[1755208355875,1.17354555,117730.0,117720.0,0.0180795]
[1755208356129,1.75463709,117730.0,117720.0,0.0180795]
[1755208356344,1.74976124,117730.0,117720.0,0.0180795]
[1755208356552,1.74976124,117730.0,117720.0,0.01857224]
[1755208356757,1.17454555,117730.0,117720.0,0.01857224]
[1755208357024,0.96953555,117730.0,117720.0,0.1904569]
[1755208357243,0.76135961,117730.0,117720.0,0.1934169]
[1755208357474,0.61039961,117730.0,117720.0,0.80352259]
[1755208357687,0.74570383,117730.0,117720.0,0.80352259]
[1755208358118,0.24474383,117730.0,117720.0,0.2283069]
[1755208358366,0.59466383,117730.0,117720.0,0.2283069]
[1755208358579,0.59566383,117730.0,117720.0,0.80352259]
[1755208359023,0.27280428,117730.0,117720.0,1.37873828]
[1755208359237,0.17280428,117730.0,117720.0,1.37873828]
[1755208360005,0.17180428,117730.0,117720.0,1.37873828]
[1755208360205,0.17180428,117730.0,117720.0,1.37973828]
[1755208360622,0.17180428,117730.0,117720.0,0.2293069]
[1755208360838,0.17180428,117730.0,117720.0,0.90541851]
[1755208362042,0.17180428,117730.0,117720.0,1.24541851]
[1755208363530,0.02088428,117730.0,117720.0,1.24541851]
[1755208363742,0.3,117760.0,117750.0,0.16985138]
[1755208363962,0.3,117760.0,117750.0,0.20969138]
[1755208363963,0.53513405,117760.0,117750.0,0.20969138]
[1755208364176,0.43513405,117760.0,117750.0,0.88580299]
[1755208364384,0.43513405,117760.0,117750.0,0.20969138]
[1755208364654,0.43513405,117760.0,117750.0,0.88580299]
[1755208365493,0.43513405,117760.0,117750.0,0.88680299]
[1755208366146,0.15032,117760.0,117750.0,0.88680299]
[1755208366356,0.15032,117760.0,117750.0,0.89548993]
[1755208366781,0.15032,117760.0,117750.0,1.23548993]
[1755208366990,0.15032,117760.0,117750.0,0.55937832]
[1755208367204,0.15032,117760.0,117750.0,1.23548993]
[1755208367412,0.2,117770.0,117760.0,0.16983695]
[1755208367638,0.1,117780.0,117770.0,0.16982253]
[1755208367819,0.31766186,117800.0,117790.0,0.1697937]
[1755208368047,0.79996445,117800.0,117790.0,0.1747437]
[1755208368690,0.80011152,117800.0,117790.0,0.1747437]
[1755208369326,0.11585442,117800.0,117790.0,0.1747437]
[1755208369534,0.14978707,117800.0,117790.0,0.85085531]
[1755208369756,0.14966707,117800.0,117790.0,0.85085531]
[1755208371536,0.15066707,117800.0,117790.0,0.85085531]
[1755208371889,0.14966707,117800.0,117790.0,0.85085531]
[1755208372095,0.14966707,117800.0,117790.0,0.84585531]
[1755208372376,0.00014707,117800.0,117790.0,0.84585531]
[1755208372529,0.14926707,117800.0,117790.0,0.84585531]
[1755208373124,0.14918707,117800.0,117790.0,0.84585531]
[1755208373951,0.00014707,117800.0,117790.0,0.84585531]
[1755208374163,0.14906707,117800.0,117790.0,0.84585531]
[1755208374357,0.14890707,117800.0,117790.0,0.84585531]
[1755208376977,0.14890707,117800.0,117790.0,1.18585531]
[1755208377611,0.00014707,117800.0,117790.0,1.18585531]
[1755208378196,0.00014707,117800.0,117790.0,1.36886531]
[1755208379111,0.00014707,117800.0,117790.0,1.36986531]
[1755208380767,0.00014707,117800.0,117790.0,1.84621388]
[1755208381246,0.00014707,117800.0,117790.0,1.93102793]
[1755208382848,0.00014707,117800.0,117790.0,0.77856775]
[1755208383082,0.00014707,117800.0,117790.0,1.93102793]
[1755208384200,0.00014707,117800.0,117790.0,2.01584917]
[1755208384422,0.00014707,117800.0,117790.0,1.93102793]
[1755208387876,0.00014707,117800.0,117790.0,2.19522793]
[1755208390154,0.36632959,117820.0,117810.0,0.16976487]
[1755208390376,0.46830382,117820.0,117810.0,0.16976487]
[1755208390821,0.46830382,117820.0,117810.0,0.74599496]
[1755208391042,0.45255,117820.0,117810.0,0.75469122]
[1755208391724,0.45255,117820.0,117810.0,0.74599496]
[1755208391906,0.45255,117820.0,117810.0,1.08599496]
[1755208392601,0.45255,117820.0,117810.0,0.50976487]
[1755208392827,0.45255,117820.0,117810.0,1.08599496]
[1755208393043,0.45255,117820.0,117810.0,1.09429648]
[1755208393698,0.45255,117820.0,117810.0,0.51806639]
[1755208393913,0.45255,117820.0,117810.0,1.09429648]
[1755208394358,0.46833746,117820.0,117810.0,1.09429648]
[1755208396792,0.46835461,117820.0,117810.0,1.09429648]
[1755208396998,0.46835461,117820.0,117810.0,0.51806639]
[1755208397205,0.46835461,117820.0,117810.0,1.09429648]
[1755208399601,0.73558207,117820.0,117810.0,0.50976487]
[1755208399824,0.73558207,117820.0,117810.0,1.08599496]
[1755208400505,0.66835461,117820.0,117810.0,1.08599496]
[1755208401385,0.66835461,117820.0,117810.0,1.08347496]
[1755208403165,0.16156461,117820.0,117810.0,1.08543496]
[1755208403400,0.16156461,117820.0,117810.0,1.08849496]
[1755208403621,0.16156461,117820.0,117810.0,1.23111496]
[1755208404325,0.16156461,117820.0,117810.0,1.23211496]
[1755208405332,0.16156461,117820.0,117810.0,1.23517496]
[1755208405797,0.16156461,117820.0,117810.0,1.23211496]
[1755208408602,1e-08,117820.0,117810.0,1.26162633]
[1755208408808,0.34544,117840.0,117830.0,0.16973606]
[1755208409024,0.43040167,117840.0,117830.0,0.74792615]
[1755208410347,1e-08,117840.0,117830.0,1.80959624]
[1755208410560,1e-08,117840.0,117830.0,1.81265624]
[1755208410807,1e-08,117840.0,117830.0,1.89747748]
[1755208411890,1e-08,117840.0,117830.0,1.89847748]
[1755208412304,1e-08,117840.0,117830.0,1.93180748]
[1755208412523,1e-08,117840.0,117830.0,0.7793473]
[1755208412735,1e-08,117840.0,117830.0,1.93180748]
[1755208413605,1e-08,117840.0,117830.0,2.01662153]
[1755208414477,1e-08,117840.0,117830.0,2.01562153]
[1755208414699,1e-08,117840.0,117830.0,2.01662153]
[1755208415572,1e-08,117840.0,117830.0,0.86416135]
[1755208415813,1e-08,117840.0,117830.0,1.93180029]
[1755208416026,1e-08,117840.0,117830.0,1.95680029]
[1755208416661,1e-08,117840.0,117830.0,1.95580029]
[1755208417113,1e-08,117840.0,117830.0,1.96780029]
[1755208417320,1e-08,117840.0,117830.0,2.05262153]
[1755208417784,0.32164236,117880.0,117830.0,2.05262153]
[1755208418002,0.32178995,117880.0,117870.0,1.08590854]
[1755208418213,0.32178995,117880.0,117870.0,1.80950863]
[1755208418462,0.32389995,117880.0,117870.0,1.80950863]
[1755208418688,0.32389995,117880.0,117870.0,1.89432987]
[1755208418915,0.32389995,117880.0,117870.0,1.31809978]
[1755208419054,0.30014759,117880.0,117870.0,1.98216392]
[1755208419675,0.30014759,117880.0,117870.0,2.00764892]
[1755208420605,0.30014759,117880.0,117870.0,2.01610092]
[1755208421018,0.00014759,117880.0,117870.0,2.01610092]
[1755208422026,0.14833,117900.0,117890.0,0.74587976]
[1755208422283,0.25044,117900.0,117890.0,0.74587976]
[1755208422681,0.15044,117900.0,117890.0,0.74587976]
[1755208422894,0.14751,117900.0,117890.0,0.74784976]
[1755208423547,0.00211,117900.0,117890.0,0.74784976]
[1755208423758,0.00504,117900.0,117890.0,0.74784976]
[1755208423973,0.00504,117900.0,117890.0,0.74587976]
[1755208424402,0.00504,117900.0,117890.0,0.20648932]
[1755208424616,0.00504,117900.0,117890.0,0.74587976]
[1755208424845,0.00211,117900.0,117890.0,1.08784976]
[1755208425051,0.00211,117900.0,117890.0,1.23622976]
[1755208425920,0.14829,117910.0,117900.0,0.16963528]
[1755208426145,0.10504,117910.0,117900.0,0.74586537]
[1755208426373,0.00211,117910.0,117900.0,1.23319537]
[1755208426593,0.00211,117910.0,117900.0,1.24496924]
[1755208427154,0.14829,117920.0,117910.0,0.50962089]
[1755208427387,0.15054756,117920.0,117910.0,1.08585098]
[1755208427579,0.00518756,117920.0,117910.0,1.08585098]
[1755208428163,0.00518756,117920.0,117910.0,0.50962089]
[1755208428356,0.40960812,117920.0,117910.0,0.16962089]
[1755208428556,0.79442936,117920.0,117910.0,0.16962089]
[1755208431383,0.56962089,117910.0,117900.0,0.16963528]
[1755208431596,0.90479494,117910.0,117900.0,0.16963528]
[1755208436555,0.73517405,117910.0,117900.0,0.16963528]
[1755208438166,0.74305137,117910.0,117900.0,0.16963528]
[1755208439341,0.75881364,117910.0,117900.0,0.16963528]
[1755208440094,0.75881367,117910.0,117900.0,0.16963528]
[1755208440348,0.97641615,117910.0,117900.0,0.16963528]
[1755208440593,0.15,117900.0,117890.0,0.17813215]
[1755208440842,0.23985405,117900.0,117890.0,0.17813215]
[1755208441602,0.23985405,117900.0,117890.0,0.75436224]
[1755208441857,0.32467529,117900.0,117890.0,0.17813215]
[1755208442105,0.51797515,117900.0,117890.0,0.17813215]
[1755208442352,0.34833987,117900.0,117890.0,0.17813215]
[1755208444736,0.26351863,117900.0,117890.0,0.17813215]
[1755208445905,0.27194903,117900.0,117890.0,0.17813215]
[1755208446209,0.26351863,117900.0,117890.0,0.17813215]
[1755208447647,0.24774224,117900.0,117890.0,0.17813215]
[1755208447829,0.26353156,117900.0,117890.0,0.17813215]
[1755208448547,0.26353811,117900.0,117890.0,0.17813215]
[1755208449234,0.26353828,117900.0,117890.0,0.17813215]
[1755208450117,0.26353828,117900.0,117890.0,0.75436224]
[1755208450261,0.25564337,117900.0,117890.0,0.75436224]
[1755208450465,0.25564337,117900.0,117890.0,0.17813215]
[1755208451086,0.42527865,117900.0,117890.0,0.17813215]
[1755208451452,0.25564337,117900.0,117890.0,0.17813215]
[1755208452304,0.42527865,117900.0,117890.0,0.17813215]
[1755208453396,0.51009989,117900.0,117890.0,0.17813215]
[1755208454190,0.4,117890.0,117880.0,0.7575146]
[1755208454393,0.64584337,117890.0,117880.0,0.7596046]
[1755208454812,0.64783337,117890.0,117880.0,0.7596046]
[1755208455594,0.64584337,117890.0,117880.0,0.7596046]
[1755208460029,0.63005405,117890.0,117880.0,0.7596046]
[1755208462364,0.63204405,117890.0,117880.0,0.7596046]
[1755208463026,0.63005405,117890.0,117880.0,0.7596046]
[1755208463225,0.63005405,117890.0,117880.0,0.18337451]
[1755208463447,0.63005405,117890.0,117880.0,0.7596046]
[1755208464722,0.69005405,117890.0,117880.0,0.7596046]
[1755208472856,0.77487529,117890.0,117880.0,0.18337451]
[1755208473061,0.77487529,117890.0,117880.0,0.7596046]
[1755208473299,0.69005405,117890.0,117880.0,0.7596046]
[1755208473950,0.69204405,117890.0,117880.0,0.7596046]
[1755208475731,0.69204405,117890.0,117880.0,0.7564546]
[1755208476371,0.69204405,117890.0,117880.0,0.18022451]
[1755208476481,0.69204405,117890.0,117880.0,0.7564546]
[1755208479465,0.69529405,117890.0,117880.0,0.7564546]
[1755208479669,0.86494372,117890.0,117880.0,0.7543646]
[1755208479970,0.69529405,117890.0,117880.0,0.7543646]
[1755208480958,0.69529405,117890.0,117880.0,0.7563346]
[1755208482300,0.69204405,117890.0,117880.0,0.7563346]
[1755208482950,0.46,117890.0,117880.0,0.7592946]
[1755208483158,0.60492,117890.0,117880.0,0.7592946]
[1755208483574,0.40492,117890.0,117880.0,0.7592946]
[1755208485391,0.40492,117890.0,117880.0,0.18306451]
[1755208485597,0.40492,117890.0,117880.0,0.7592946]
[1755208487123,0.40492,117890.0,117880.0,0.18306451]
[1755208487322,0.40492,117890.0,117880.0,0.7592946]
[1755208487729,0.40492,117890.0,117880.0,0.18306451]
[1755208487845,0.40492,117890.0,117880.0,0.7592946]
[1755208489527,0.40492,117890.0,117880.0,0.18306451]
[1755208490014,0.40492,117890.0,117880.0,0.7592946]
[1755208490471,0.40492,117890.0,117880.0,0.18306451]
[1755208490893,0.40692,117890.0,117880.0,0.18306451]
[1755208491118,0.16966406,117880.0,117870.0,0.24602412]
[1755208491333,0.4,117870.0,117860.0,0.16968024]
[1755208491544,0.8012925,117870.0,117860.0,0.16969285]
[1755208491759,0.81306394,117870.0,117860.0,0.16969285]
[1755208492201,0.64338549,117870.0,117860.0,0.16969285]
[1755208492410,0.70320752,117870.0,117860.0,0.16984044]